bitfinex/quotes_ETHUSD_20241129
["timestamp","ask_amount","ask_price","bid_price","bid_amount"]
[1732855822659,0.1846,3583.9,3583.0,3.24544084]
[1732855822817,0.44359846,3583.9,3583.0,3.24544084]
[1732855823418,0.1846,3583.9,3583.0,3.24544084]
[1732855823643,0.1846,3583.9,3583.2,2.79076]
[1732855823856,3.0,3583.8,3583.3,0.09099655]
[1732855824359,3.0,3583.8,3583.2,2.79076]
[1732855824539,0.1846,3583.9,3583.4,0.09098231]
[1732855824853,0.1846,3583.9,3583.5,0.09096808]
[1732855825059,3.1846,3583.9,3583.3,2.79069]
[1732855825353,3.1846,3583.9,3583.6,0.09095384]
[1732855825556,2.97472,3584.1,3583.4,0.7764]
[1732855825729,2.97472,3584.1,3583.7,0.09093961]
[1732855825936,2.97472,3584.1,3583.4,0.7764]
[1732855826243,3.04921539,3584.0,3583.4,0.7764]
[1732855826441,2.79019,3584.0,3583.5,0.09096808]
[1732855827419,0.1846,3584.1,3583.5,0.09096808]
[1732855827619,0.1846,3584.1,3583.5,2.88152808]
[1732855827862,0.4435689,3584.1,3583.5,2.88152808]
[1732855828057,3.2589689,3584.1,3583.5,2.88152808]
[1732855828223,5.78998,3584.3,3583.5,2.88152808]
[1732855828423,3.59899495,3584.2,3583.5,2.88152808]
[1732855828733,3.0,3584.3,3583.6,2.79048]
[1732855829053,3.0,3584.3,3583.7,0.09093961]
[1732855829831,0.1846,3584.4,3583.7,0.09093961]
[1732855830145,2.78972,3584.6,3583.9,2.79022]
[1732855830146,3.25898704,3584.5,3583.9,2.79022]
[1732855830328,3.0,3584.5,3583.9,2.79022]
[1732855830522,3.0,3584.5,3584.0,0.09076597]
[1732855830824,5.7898,3584.5,3583.8,0.8256]
[1732855831027,0.1846,3584.6,3583.9,0.0907802]
[1732855831222,0.25893933,3584.6,3584.0,0.37066902]
[1732855831447,2.78965,3584.7,3584.1,0.09075174]
[1732855831853,0.0141276,3584.9,3584.1,0.09075174]
[1732855832064,0.1846,3585.0,3584.2,0.82699723]
[1732855832272,2.97401,3585.0,3584.2,0.7991]
[1732855832424,3.04842299,3584.9,3584.2,0.7991]
[1732855832758,2.78948,3584.9,3584.3,0.12579774]
[1732855833258,0.1846,3585.0,3584.3,0.12579774]
[1732855833455,0.25894343,3585.0,3584.3,3.8425699]
[1732855834159,0.25894343,3585.0,3584.4,2.81773626]
[1732855834477,0.25894343,3585.0,3584.5,2.91553732]
[1732855834880,3.25894343,3585.0,3584.6,0.8094]
[1732855835053,3.0,3585.0,3584.6,0.8094]
[1732855835249,3.0,3585.0,3584.7,0.12573691]
[1732855835449,3.0,3585.0,3584.6,0.8094]
[1732855835651,3.0,3585.0,3584.7,0.12573691]
[1732855835840,2.97369,3585.4,3584.3,0.92687216]
[1732855835841,3.25895449,3584.9,3584.3,0.92687216]
[1732855836046,5.78948,3584.9,3584.4,0.95398253]
[1732855836359,5.78948,3584.9,3584.4,1.421069]
[1732855837168,5.78948,3584.9,3584.4,0.95398253]
[1732855837358,5.78935,3585.1,3584.4,0.95398253]
[1732855837569,0.25901912,3585.0,3584.4,0.95398253]
[1732855837945,2.78917,3585.3,3584.6,2.7897]
[1732855838146,3.04825912,3585.2,3584.6,2.7897]
[1732855838384,0.25901912,3585.1,3584.7,0.50010516]
[1732855841494,0.25901912,3585.0,3584.7,0.50010516]
[1732855841819,0.25901912,3584.9,3584.7,0.50010516]
[1732855842100,0.25901912,3585.0,3584.7,0.50010516]
[1732855842275,2.78946,3585.0,3584.7,0.50010516]
[1732855842453,0.25943593,3584.9,3584.7,0.12573691]
[1732855842648,0.25943593,3584.9,3584.4,3.61805]
[1732855842868,0.25943593,3584.9,3584.5,0.12576732]
[1732855843111,0.1987276,3584.8,3584.5,0.12576732]
[1732855843393,6.52431,3584.6,3584.5,0.12576732]
[1732855843552,3.33981,3584.5,3583.6,0.7522]
[1732855843755,2.79002,3584.2,3583.7,0.40947025]
[1732855843955,0.25943593,3584.1,3583.7,0.12104126]
[1732855844190,0.25943593,3584.0,3583.7,0.12104126]
[1732855844489,0.4150975,3584.3,3583.7,0.12104126]
[1732855844693,0.2595599,3584.2,3583.7,0.12104126]
[1732855844990,0.2595599,3584.1,3583.8,0.42156538]
[1732855845287,0.2595599,3584.3,3583.9,0.12112649]
[1732855845495,0.25963241,3584.2,3583.9,0.12112649]
[1732855845804,0.25963241,3584.1,3583.9,0.12112649]
[1732855846165,0.4150975,3584.4,3583.9,0.12112649]
[1732855846391,0.2596354,3584.3,3584.0,2.79017]
[1732855846687,0.2596354,3584.3,3583.9,0.80868968]
[1732855846688,0.2596354,3584.2,3584.1,0.12113868]
[1732855847095,0.2596354,3584.2,3583.9,0.68756319]
[1732855847305,0.2596354,3584.1,3583.9,0.68756319]
[1732855847591,2.7898,3584.5,3583.9,0.68756319]
[1732855847796,2.78997,3584.3,3584.0,0.34778332]
[1732855848130,0.25970014,3584.4,3583.6,3.54268]
[1732855848131,3.04973014,3584.2,3583.6,0.7522]
[1732855848283,0.25970014,3584.1,3583.7,2.7904]
[1732855848487,3.2048975,3584.5,3583.7,2.7904]
[1732855848685,0.25973754,3584.4,3583.8,0.68851025]
[1732855848900,0.25973754,3584.3,3583.8,0.68851025]
[1732855849185,0.25973754,3584.2,3583.8,0.68851025]
[1732855849399,0.25973754,3584.1,3583.8,0.68851025]
[1732855849595,2.78995,3584.3,3583.8,0.68851025]
[1732855849884,0.25985564,3584.2,3583.8,0.68851025]
[1732855850084,0.25985564,3584.1,3583.8,0.68851025]
[1732855850389,0.25985564,3584.0,3583.8,0.68851025]
[1732855850595,3.2048875,3584.5,3583.8,0.68851025]
[1732855850795,3.2048875,3584.5,3583.6,0.7522]
[1732855850796,2.78996,3584.3,3583.6,3.54267]
[1732855850989,0.67507792,3584.2,3583.6,3.54267]
[1732855851195,2.78996,3584.3,3583.6,3.54267]
[1732855851196,0.25998042,3584.1,3583.6,3.54267]
[1732855851391,0.25998042,3584.0,3583.6,3.54267]
[1732855851597,0.25998042,3583.9,3583.7,0.68852425]
[1732855851864,0.4150975,3584.2,3583.7,0.68852425]
[1732855852122,0.26009799,3584.1,3583.7,0.68852425]
[1732855852319,0.26009799,3584.0,3583.7,0.68852425]
[1732855852482,0.26009799,3583.9,3583.7,0.68852425]
[1732855852688,0.4150975,3584.2,3583.8,0.47831368]
[1732855852990,0.67529859,3584.1,3583.8,0.47831368]
[1732855853188,0.26020109,3584.0,3583.8,0.47831368]
[1732855853510,0.26020109,3583.9,3583.8,3.26864368]
[1732855853887,0.26020109,3583.9,3583.8,0.47831368]
[1732855856247,0.26020109,3583.9,3583.8,3.26864368]
[1732855857218,0.26020109,3583.9,3583.8,3.39002891]
[1732855857599,0.26020109,3583.9,3583.8,3.41793062]
[1732855857801,3.0,3584.7,3583.8,3.39002891]
[1732855858012,0.6771991,3584.6,3584.2,0.804]
[1732855858334,0.6771991,3584.5,3584.3,0.12130917]
[1732855858535,0.6771991,3584.4,3584.3,2.91124917]
[1732855858715,0.6771991,3584.4,3584.3,0.12130917]
[1732855859101,0.26046119,3584.4,3584.3,0.12130917]
[1732855859437,0.6771991,3584.4,3584.3,0.12130917]
[1732855859921,0.67740388,3584.4,3584.3,0.12130917]
[1732855860127,0.67740388,3584.4,3584.3,3.49072181]
[1732855860516,0.67740388,3584.4,3584.3,0.12130917]
[1732855860915,0.67740388,3584.4,3583.9,3.12924289]
[1732855861228,0.67740388,3584.3,3583.9,3.12924289]
[1732855861426,0.26053995,3584.2,3584.0,2.79011]
[1732855861740,0.26053995,3584.1,3584.0,2.79011]
[1732855862240,0.26051373,3584.1,3584.0,2.79011]
[1732855862448,0.26051373,3584.1,3584.0,3.45817329]
[1732855862915,0.26051373,3584.1,3584.0,4.02327629]
[1732855863306,2.78928,3585.2,3584.0,4.02327629]
[1732855863307,0.41682198,3584.6,3584.4,2.78985]
[1732855863501,3.0,3585.0,3584.4,2.78985]
[1732855863502,0.67722164,3584.5,3584.4,2.78985]
[1732855863719,0.26039966,3584.5,3584.4,3.43377474]
[1732855865441,0.26039966,3584.5,3584.4,4.23017474]
[1732855865822,0.4166399,3585.3,3584.5,2.78978]
[1732855866028,0.67705112,3585.2,3584.5,2.78978]
[1732855866225,0.67705112,3585.1,3584.7,2.78957]
[1732855866441,0.67705112,3585.0,3584.7,2.78957]
[1732855866636,0.67705112,3584.9,3584.7,3.49153747]
[1732855866908,0.26041122,3584.8,3584.7,0.70196747]
[1732855867621,0.67705112,3584.8,3584.7,0.70196747]
[1732855867821,0.26041122,3584.8,3584.7,0.70196747]
[1732855869173,0.26036309,3584.8,3584.7,0.70196747]
[1732855870028,0.26036309,3584.8,3584.7,3.49159747]
[1732855870544,0.26036309,3585.2,3584.7,3.49159747]
[1732855870760,0.26036309,3585.1,3584.7,3.49159747]
[1732855871044,0.26036309,3585.0,3584.8,0.34915975]
[1732855871268,0.26036309,3584.9,3584.8,0.34915975]
[1732855871566,0.26036309,3584.9,3584.4,3.58625]
[1732855871872,0.26036309,3584.8,3584.5,2.78976]
[1732855872034,0.26036309,3584.7,3584.5,2.78976]
[1732855872241,5.78916,3585.3,3584.5,2.78976]
[1732855872440,0.26043957,3585.2,3584.6,0.75866555]
[1732855872644,0.26043957,3585.1,3584.6,3.54837555]
[1732855872853,0.26043957,3585.0,3584.6,3.54837555]
[1732855873174,5.78916,3585.3,3584.6,3.54837555]
[1732855873175,0.26043957,3584.9,3584.6,0.75866555]
[1732855873346,0.26043957,3584.8,3584.6,0.75866555]
[1732855873546,0.26043957,3584.7,3584.6,0.12105655]
[1732855873855,2.78941,3585.0,3584.4,0.7964]
[1732855874035,0.2604139,3584.7,3584.5,0.12107176]
[1732855874239,2.78941,3585.0,3584.5,0.12107176]
[1732855874553,0.26043146,3584.9,3584.5,0.12107176]
[1732855874872,0.26043146,3584.8,3584.5,0.12107176]
[1732855875069,0.26043146,3584.7,3584.5,0.12107176]
[1732855875370,2.78941,3585.0,3584.5,0.12107176]
[1732855875547,0.2604352,3584.9,3584.5,0.12107176]
[1732855875745,3.0499852,3584.8,3584.5,0.12107176]
[1732855875939,0.2604352,3584.7,3584.5,0.12107176]
[1732855876139,0.2604352,3584.6,3584.2,2.79002]
[1732855876484,0.2604352,3584.5,3584.2,0.73115959]
[1732855876636,0.2604352,3584.4,3584.1,0.8273]
[1732855876835,2.78977,3584.6,3584.1,0.8273]
[1732855876836,0.2604352,3584.3,3584.1,0.8273]
[1732855877040,0.26042579,3584.5,3584.1,0.8273]
[1732855877348,0.26042549,3584.4,3584.0,0.565103]
[1732855877669,2.97439,3584.5,3584.0,0.565103]
[1732855877670,0.26042549,3584.3,3584.0,0.565103]
[1732855877879,0.26042639,3584.2,3584.0,0.565103]
[1732855878077,0.26042791,3584.4,3584.0,0.565103]
[1732855878236,0.26042438,3584.3,3584.0,0.565103]
[1732855878565,0.26042438,3584.2,3584.0,0.565103]
[1732855878762,0.26042438,3584.1,3583.7,0.7732]
[1732855878934,0.26043461,3584.3,3583.7,1.129567]
[1732855879140,3.0,3584.7,3584.1,2.7901]
[1732855879476,0.26044128,3584.6,3584.1,2.7901]
[1732855879650,0.26044128,3584.5,3584.1,2.7901]
[1732855879842,2.97421,3584.8,3584.1,2.7901]
[1732855880038,0.26046204,3584.4,3584.1,2.7901]
[1732855880259,2.97421,3584.8,3584.1,3.430941]
[1732855880472,0.2604687,3584.7,3584.1,2.7901]
[1732855880784,0.2604687,3584.6,3584.1,2.7901]
[1732855880978,0.2604687,3584.5,3584.1,2.7901]
[1732855881287,0.2604687,3584.4,3584.1,2.7901]
[1732855881581,0.55,3584.9,3584.3,0.7942]
[1732855881743,0.55,3584.7,3584.3,0.7942]
[1732855881949,0.26047474,3584.6,3584.3,0.7942]
[1732855882148,0.26047474,3584.5,3584.3,0.7942]
[1732855882349,0.1846,3585.2,3584.5,2.78978]
[1732855882559,0.26051634,3585.1,3584.5,2.78978]
[1732855882850,0.26051634,3585.0,3584.7,2.78955]
[1732855883050,0.26051634,3584.9,3584.7,2.78955]
[1732855883241,2.9737,3585.4,3584.7,2.78955]
[1732855883470,0.26052255,3585.3,3584.7,2.78955]
[1732855883656,0.26052255,3585.2,3584.8,0.557933]
[1732855883868,0.26052255,3585.1,3584.8,3.347453]
[1732855884074,0.26052255,3585.0,3584.8,3.347453]
[1732855884245,0.26052255,3584.9,3584.8,3.347453]
[1732855884441,0.26052255,3584.9,3584.8,2.78952]
[1732855884879,3.1846,3585.4,3584.8,2.78952]
[1732855885081,0.26049589,3585.3,3584.8,2.78952]
[1732855885264,0.26049589,3585.2,3584.8,2.78952]
[1732855885472,0.26049589,3585.1,3584.8,2.78955]
[1732855885697,0.26049589,3585.0,3584.9,3.15436438]
[1732855887276,0.26049589,3585.0,3584.9,3.27535095]
[1732855890116,0.1846,3585.4,3585.0,2.78934]
[1732855890416,0.55,3585.6,3585.2,2.78922]
[1732855890577,0.55,3585.6,3585.1,0.12095617]
[1732855890776,0.26046647,3585.5,3585.2,0.60647005]
[1732855891012,0.26046647,3585.4,3585.2,0.60647005]
[1732855891212,0.55,3585.6,3585.3,0.12092577]
[1732855891513,0.26048503,3585.5,3585.2,0.60647005]
[1732855891718,0.26048503,3585.4,3585.2,0.60647005]
[1732855892014,0.26048503,3585.3,3585.2,0.60647005]
[1732855893324,0.26048503,3585.3,3584.9,3.15436438]
[1732855893499,0.26048503,3585.2,3584.9,3.15436438]
[1732855893695,0.26048503,3585.1,3584.9,0.36495438]
[1732855893896,0.1846,3584.8,3584.2,3.34239546]
[1732855894126,0.26048503,3584.7,3584.3,2.78993]
[1732855894294,0.26048503,3584.6,3584.3,2.78993]
[1732855894495,0.26048503,3584.5,3584.3,2.78993]
[1732855894800,0.26048503,3584.4,3584.3,2.78993]
[1732855895137,0.26046298,3584.4,3584.3,3.43109281]
[1732855896434,0.26046298,3584.7,3584.3,3.43109281]
[1732855896599,0.26046298,3584.6,3584.3,3.43109281]
[1732855896798,0.26046298,3584.5,3584.3,3.43109281]
[1732855897000,0.26046298,3584.4,3584.3,3.43109281]
[1732855897433,0.26046298,3584.7,3584.3,3.43109281]
[1732855897638,0.26046298,3584.6,3584.3,3.43109281]
[1732855897936,0.26046298,3584.5,3584.4,0.47898233]
[1732855898639,0.26046298,3584.5,3584.1,0.55513053]
[1732855898843,0.26046298,3584.4,3584.1,0.55513053]
[1732855899135,2.97416,3584.8,3584.1,0.55513053]
[1732855899304,3.05009031,3584.7,3584.1,0.55513053]
[1732855899499,0.26045031,3584.6,3584.1,0.55513053]
[1732855899704,0.26045031,3584.5,3584.1,0.55513053]
[1732855899905,0.26045031,3584.4,3584.1,0.55513053]
[1732855900107,2.78964,3584.7,3584.1,0.55513053]
[1732855900446,0.26044071,3584.6,3584.1,0.55513053]
[1732855900624,0.26044071,3584.6,3584.1,1.25058358]
[1732855900829,0.26044071,3584.5,3584.1,1.25058358]
[1732855901026,0.26044071,3584.4,3584.1,1.25058358]
[1732855901213,2.78964,3584.7,3584.1,1.25058358]
[1732855901416,0.26042569,3584.6,3584.1,1.25058358]
[1732855901744,0.26042569,3584.5,3584.1,1.25058358]
[1732855901949,0.26042569,3584.4,3584.1,1.25058358]
[1732855902132,2.78964,3584.7,3584.2,0.12089522]
[1732855902326,0.26042496,3584.6,3584.2,0.12089522]
[1732855902550,0.26042496,3584.5,3584.2,0.12089522]
[1732855902839,0.1846,3584.8,3584.2,0.12089522]
[1732855902840,0.26042496,3584.4,3584.2,0.12089522]
[1732855903007,2.78964,3584.7,3584.2,0.12089522]
[1732855903210,0.26041647,3584.6,3584.2,0.12089522]
[1732855903433,0.26041647,3584.5,3584.2,0.12089522]
[1732855903644,0.26041647,3584.4,3584.2,0.12089522]
[1732855903848,2.78964,3584.7,3584.2,0.12089522]
[1732855904142,2.78972,3584.6,3584.2,0.12089522]
[1732855904343,0.26040524,3584.5,3584.2,0.12089522]
[1732855904648,0.26040524,3584.4,3584.2,0.12089522]
[1732855904810,0.26040524,3584.5,3584.2,0.12089522]
[1732855905128,0.26040524,3584.4,3584.2,0.12089522]
[1732855905330,0.26040524,3584.5,3584.2,0.12089522]
[1732855905528,2.78972,3584.6,3584.2,0.12089522]
[1732855905529,0.26040524,3584.4,3584.2,0.12089522]
[1732855905729,0.26040524,3584.5,3583.9,0.8189]
[1732855905911,2.78972,3584.6,3584.3,0.12108694]
[1732855906111,0.2603994,3584.5,3584.0,3.1511]
[1732855906311,2.78972,3584.6,3584.1,0.12111736]
[1732855906542,0.26045816,3584.5,3584.1,0.12111736]
[1732855906855,2.78972,3584.6,3584.1,0.12111736]
[1732855907048,0.26048826,3584.5,3584.1,0.12111736]
[1732855907340,2.78972,3584.6,3584.1,0.12111736]
[1732855907511,0.26049809,3584.5,3584.1,0.12111736]
[1732855907710,0.55,3584.7,3584.2,2.78996]
[1732855907909,0.260503,3584.6,3584.3,0.12108694]
[1732855908111,0.55,3584.7,3584.3,0.12108694]
[1732855908561,0.2605401,3584.6,3584.3,0.12108694]
[1732855908716,0.55,3584.7,3584.3,0.12108694]
[1732855908923,0.2605366,3584.6,3584.3,0.12108694]
[1732855909222,0.55,3584.7,3584.3,0.12108694]
[1732855909418,0.2605482,3584.6,3584.3,0.12108694]
[1732855909754,0.2605482,3584.5,3584.3,0.12108694]
[1732855909919,0.26054472,3584.6,3584.3,0.12108694]
[1732855910120,0.55,3584.7,3584.3,0.12108694]
[1732855910354,0.26054379,3584.6,3584.3,0.12108694]
[1732855910539,0.55,3584.7,3584.3,0.12108694]
[1732855910716,0.26056616,3584.6,3584.3,0.12108694]
[1732855910913,0.55,3584.7,3584.3,0.12108694]
[1732855911126,0.26056917,3584.6,3584.3,0.12108694]
[1732855911318,0.26056917,3584.5,3584.3,0.12108694]
[1732855911546,0.26056917,3584.6,3584.3,0.12108694]
[1732855911733,0.55,3584.7,3584.3,0.12108694]
[1732855911929,0.26057235,3584.6,3584.3,0.12108694]
[1732855912257,0.26057235,3584.5,3584.3,0.12108694]
[1732855912556,0.26057235,3584.6,3584.3,0.12108694]
[1732855912852,0.55,3584.7,3584.3,0.12108694]
[1732855913066,0.26057258,3584.6,3584.3,0.12108694]
[1732855913356,0.26057298,3584.5,3584.1,2.79009]
[1732855913657,0.26057298,3584.6,3584.4,0.12107173]
[1732855913858,0.26057298,3584.5,3584.1,2.79009]
[1732855914018,0.55,3584.7,3584.1,2.79009]
[1732855914221,0.26061546,3584.6,3584.1,2.79009]
[1732855914454,0.26061546,3584.5,3584.2,2.78995]
[1732855914759,0.26061546,3584.6,3584.3,0.64949507]
[1732855914953,0.26061546,3584.5,3584.3,0.64949507]
[1732855915158,0.55,3584.7,3584.2,2.56444507]
[1732855915361,0.26063921,3584.6,3584.2,2.56444507]
[1732855915531,0.26063921,3584.5,3584.2,2.56444507]
[1732855915736,0.55,3584.7,3584.2,2.56444507]
[1732855915952,0.26066092,3584.6,3584.2,2.56444507]
[1732855916145,0.26066092,3584.5,3584.2,2.56444507]
[1732855916458,0.55,3584.7,3584.2,2.56444507]
[1732855916666,0.2606818,3584.6,3584.2,2.56444507]
[1732855916861,0.2606818,3584.5,3584.2,2.56444507]
[1732855917168,0.55,3584.7,3584.3,0.12107174]
[1732855917373,0.26071597,3584.6,3584.3,0.12107174]
[1732855917542,0.26071597,3584.5,3584.3,0.12107174]
[1732855917738,0.55,3584.7,3584.3,0.12107174]
[1732855918055,0.26074038,3584.6,3584.3,0.12107174]
[1732855918371,0.26073894,3584.5,3584.3,0.12107174]
[1732855918663,0.55,3584.8,3584.4,0.8226]
[1732855918829,0.2607731,3584.7,3584.4,0.8226]
[1732855919033,0.2607731,3584.6,3584.5,0.12104133]
[1732855919352,0.55,3584.8,3584.5,0.12104133]
[1732855919527,0.37346,3584.8,3584.5,0.12104133]
[1732855919734,0.55,3584.7,3584.5,0.12104133]
[1732855919929,0.2608062,3584.6,3584.5,0.12104133]
[1732855920432,0.2608062,3584.6,3584.3,2.78993]
[1732855920633,0.2608062,3584.5,3584.1,3.56058]
[1732855920865,0.55,3584.8,3584.2,2.79001]
[1732855921065,0.26085485,3584.7,3584.2,2.79001]
[1732855921272,0.55,3584.8,3584.2,2.79001]
[1732855921273,0.26085485,3584.6,3584.2,2.79001]
[1732855921443,0.26085485,3584.5,3584.2,2.79001]
[1732855921636,0.55,3584.8,3584.2,2.79001]
[1732855921836,0.26092124,3584.7,3584.2,2.79001]
[1732855922036,0.55,3584.8,3584.2,2.79001]
[1732855922037,0.26092124,3584.6,3584.2,2.79001]
[1732855922249,0.26092124,3584.5,3584.3,2.78988]
[1732855922465,0.55,3584.9,3584.3,2.78988]
[1732855922735,0.26100856,3584.8,3584.3,2.78988]
[1732855922951,0.26100856,3584.7,3584.3,2.78988]
[1732855923252,0.26100856,3584.6,3584.5,2.78978]
[1732855923457,0.26100856,3584.6,3584.5,3.55408]
[1732855925488,0.55,3585.2,3584.7,2.78957]
[1732855925690,0.26105884,3585.1,3584.7,2.78957]
[1732855925988,0.55,3585.2,3584.7,2.78957]
[1732855926785,0.1846,3585.3,3584.7,2.78957]
[1732855927024,0.26097487,3585.2,3584.7,2.78957]
[1732855927191,0.26097487,3585.1,3584.7,2.78957]
[1732855927360,0.26097487,3585.0,3584.7,2.78957]
[1732855927560,0.26097487,3584.9,3584.7,2.78957]
[1732855927785,0.26097487,3584.8,3584.7,2.78957]
[1732855927993,0.26097487,3584.8,3584.5,3.55405]
[1732855928291,2.97382,3585.3,3584.5,3.55405]
[1732855928292,5.97382,3585.3,3584.5,3.55403]
[1732855928469,0.27502099,3585.2,3584.5,3.55403]
[1732855928800,0.26089339,3585.1,3584.5,3.55403]
[1732855928962,3.05029339,3585.0,3584.5,0.7643]
[1732855929161,0.26089339,3584.9,3584.5,0.7643]
[1732855929359,0.26089339,3584.8,3584.5,0.7643]
[1732855929560,2.7894,3585.0,3584.5,0.7643]
[1732855929882,0.2608692,3584.9,3584.5,0.7643]
[1732855930103,0.2608692,3584.8,3584.5,0.7643]
[1732855930416,2.7894,3585.0,3584.5,0.7643]
[1732855930557,4.28462936,3584.9,3584.3,2.78988]
[1732855930761,0.26085028,3584.8,3584.3,2.78988]
[1732855930963,0.26085028,3584.7,3584.3,2.78988]
[1732855931160,2.78948,3584.9,3584.3,2.78988]
[1732855931382,0.2608521,3584.8,3584.3,2.78988]
[1732855931611,0.2608521,3584.7,3584.2,0.8226]
[1732855931903,0.2608521,3584.6,3584.2,0.8226]
[1732855932108,2.97415,3584.8,3584.2,0.8226]
[1732855932271,0.2608508,3584.7,3584.3,0.12101087]
[1732855932608,0.2608508,3584.6,3584.3,0.12101087]
[1732855932911,0.1846,3584.8,3584.3,0.12101087]
[1732855933061,0.26085997,3584.7,3584.6,2.78969]
[1732855933264,0.26085997,3584.7,3584.6,0.7899]
[1732855933491,0.26085997,3584.7,3584.6,0.12096525]
[1732855933808,3.0,3585.1,3584.6,0.12096525]
[1732855933967,0.2608774,3585.0,3584.4,3.57972]
[1732855934294,0.2608774,3585.0,3584.7,0.12095005]
[1732855934525,0.2608774,3584.9,3584.6,2.7897]
[1732855934800,3.0,3585.2,3584.7,0.12095005]
[1732855934963,3.0,3585.2,3584.6,2.7897]
[1732855935168,0.26087726,3585.1,3584.7,0.12095005]
[1732855935385,0.26087726,3585.0,3584.6,2.7897]
[1732855935585,3.0,3585.2,3584.8,0.12093484]
[1732855935586,0.26087726,3584.9,3584.8,0.12093484]
[1732855935784,0.26087726,3584.9,3584.6,3.430862]
[1732855935986,0.26087726,3584.8,3584.6,3.430862]
[1732855936185,3.0,3585.2,3584.6,3.430862]
[1732855936384,0.2608547,3585.1,3584.6,2.7897]
[1732855936596,0.2608547,3585.0,3584.5,0.8321]
[1732855936807,2.78926,3585.2,3584.5,3.62185]
[1732855936808,0.2608547,3584.9,3584.5,3.62185]
[1732855937119,2.78926,3585.2,3584.5,3.62185]
[1732855937314,0.26086241,3585.1,3584.5,3.62185]
[1732855937514,0.26086241,3585.0,3584.5,4.263017]
[1732855937807,0.26086241,3584.9,3584.5,4.263017]
[1732855938014,2.78926,3585.2,3584.5,4.263017]
[1732855938209,0.26087427,3585.1,3584.5,4.263017]
[1732855938417,0.26087427,3585.0,3584.8,0.7508]
[1732855938616,0.55,3585.5,3584.8,3.9584967]
[1732855938783,0.26086706,3585.4,3584.8,3.9584967]
[1732855938974,0.26086706,3585.3,3584.8,3.9584967]
[1732855939175,0.26086706,3585.2,3584.8,3.9584967]
[1732855939374,0.26086706,3585.1,3584.8,3.9584967]
[1732855939604,0.26086706,3585.0,3584.8,3.9584967]
[1732855939871,3.0,3585.4,3584.8,3.9584967]
[1732855940088,0.26083893,3585.3,3584.8,0.7508]
[1732855940284,0.26083893,3585.2,3584.8,0.7508]
[1732855940489,0.26083893,3585.1,3584.8,0.7508]
[1732855940689,0.26083893,3585.0,3584.8,0.7508]
[1732855940898,3.0,3585.3,3584.8,0.7508]
[1732855941169,0.2608166,3585.2,3584.8,3.54034]
[1732855941369,0.2608166,3585.1,3584.8,3.54034]
[1732855941686,0.2608166,3585.0,3584.8,3.54034]
[1732855941874,6.33901,3585.5,3584.8,3.54034]
[1732855942080,0.26081132,3585.4,3584.8,3.54034]
[1732855942271,0.26081132,3585.3,3584.8,3.54034]
[1732855942471,0.26081132,3585.2,3584.8,3.54034]
[1732855942710,0.26081132,3585.1,3584.8,3.54034]
[1732855942914,6.33901,3585.5,3584.8,3.54034]
[1732855944016,0.67811448,3585.4,3584.8,3.54034]
[1732855944212,0.67811448,3585.3,3584.8,3.54034]
[1732855944386,0.67811448,3585.2,3584.8,3.54034]
[1732855944567,0.26081326,3585.1,3584.8,3.54034]
[1732855944774,0.26081326,3585.0,3584.8,3.54034]
[1732855945018,0.26081326,3584.9,3584.8,3.54034]
[1732855947411,0.26081326,3584.9,3584.8,3.66125048]
[1732855952994,0.26081326,3584.9,3584.8,0.87171048]
[1732855953887,0.26102384,3584.9,3584.8,0.87171048]
[1732855955423,0.26102384,3584.9,3584.6,1.36950475]
[1732855955587,0.26102384,3584.8,3584.6,0.56040475]
[1732855955789,0.26102384,3584.7,3584.6,0.56040475]
[1732855957485,0.26102384,3584.7,3584.4,2.78985]
[1732855957684,0.26102384,3584.6,3584.4,2.78985]
[1732855957882,0.4176405,3584.9,3584.4,2.78985]
[1732855958086,0.26102737,3584.8,3584.4,3.34106539]
[1732855958315,0.26102737,3584.7,3584.4,3.34106539]
[1732855958496,0.26102737,3584.6,3584.4,3.34106539]
[1732855958800,0.1846,3584.7,3584.4,0.55121539]
[1732855959002,0.65656479,3584.6,3584.2,3.08156797]
[1732855959302,0.26097501,3584.5,3584.2,0.29156797]
[1732855959495,0.26097501,3584.4,3584.2,0.29156797]
[1732855959696,0.4175152,3584.6,3584.2,0.29156797]
[1732855959921,0.26094173,3584.5,3584.2,0.29156797]
[1732855960127,0.26094173,3584.4,3584.2,0.29156797]
[1732855960331,2.78965,3584.7,3584.2,0.29156797]
[1732855960491,0.67844983,3584.6,3584.2,0.29156797]
[1732855960692,0.26094224,3584.5,3584.2,0.29156797]
[1732855960904,0.26094224,3584.4,3584.2,0.29156797]
[1732855961104,2.78965,3584.7,3584.2,0.29156797]
[1732855961327,0.67841169,3584.6,3584.2,0.29156797]
[1732855961517,0.26092757,3584.5,3584.2,0.29156797]
[1732855961700,0.26092757,3584.4,3584.2,0.29156797]
[1732855961901,2.78965,3584.7,3584.2,0.29156797]
[1732855962097,0.67835924,3584.6,3584.2,0.29156797]
[1732855962343,0.2609074,3584.5,3584.3,0.12098347]
[1732855962540,0.2609074,3584.4,3584.3,0.12098347]
[1732855964218,3.7853674,3584.4,3584.3,0.12098347]
[1732855964418,0.94747405,3584.4,3584.3,0.12098347]
[1732855964609,0.4455074,3584.4,3583.7,2.7904]
[1732855964807,3.0508474,3584.3,3583.7,2.7904]
[1732855965032,0.2609074,3584.2,3583.7,2.7904]
[1732855965230,0.2609074,3584.1,3583.7,2.7904]
[1732855965422,2.78994,3584.3,3583.6,0.5619518]
[1732855965423,0.55,3584.3,3583.6,3.3524018]
[1732855965603,0.26077039,3584.2,3583.6,3.3524018]
[1732855965905,0.26077039,3584.1,3583.6,3.3524018]
[1732855966106,0.55,3584.3,3583.6,3.3524018]
[1732855966341,3.05073932,3584.2,3583.6,0.5619518]
[1732855966554,0.26070932,3584.1,3583.6,3.3524218]
[1732855966850,3.33995,3584.3,3583.6,4.20042103]
[1732855967022,0.26069433,3584.2,3583.6,4.20042103]
[1732855967223,0.26069433,3584.1,3583.6,4.20042103]
[1732855967441,0.55,3584.3,3583.6,4.20042103]
[1732855967736,3.05064607,3584.2,3583.6,4.20042103]
[1732855967931,0.26061607,3584.1,3583.6,4.20042103]
[1732855968149,0.55,3584.3,3583.6,4.20042103]
[1732855968361,0.2605605,3584.2,3583.7,0.80936824]
[1732855968516,0.2605605,3584.1,3583.7,0.80936824]
[1732855968715,2.79002,3584.2,3583.7,0.80936824]
[1732855969019,0.26054553,3584.1,3583.7,0.80936824]
[1732855969216,2.79002,3584.2,3583.7,0.80936824]